bitfinex/quotes_SOLUSD_20251001
["timestamp","ask_amount","ask_price","bid_price","bid_amount"]
[1759329125414,18.90375381,219.79,219.78,0.2]
[1759329125817,13.87991715,219.79,219.78,0.2]
[1759329126134,19.59375381,219.79,219.78,0.2]
[1759329126350,39.23033578,219.76,219.75,0.2]
[1759329126643,44.25417244,219.76,219.75,0.2]
[1759329126852,44.94417244,219.76,219.75,0.2]
[1759329128146,58.50668618,219.76,219.75,0.2]
[1759329131422,52.79284952,219.76,219.75,0.2]
[1759329131725,27.15810775,219.76,219.75,0.92]
[1759329132417,13.59559401,219.76,219.75,0.92]
[1759329133236,13.59559401,219.76,219.75,5.47062571]
[1759329133443,13.59559401,219.76,219.75,0.92]
[1759329134820,13.87991715,219.76,219.75,32.86]
[1759329135640,18.43033578,219.76,219.75,32.86]
[1759329135941,18.43033578,219.76,219.75,0.2]
[1759329136637,19.12033578,219.76,219.75,0.2]
[1759329139235,34.39559401,219.73,219.72,0.2]
[1759329139430,39.70375381,219.73,219.72,0.2]
[1759329139637,34.67991715,219.73,219.72,0.2]
[1759329140047,35.35991715,219.73,219.72,0.2]
[1759329140846,39.23095706,219.73,219.72,0.2]
[1759329141049,42.93827653,219.73,219.72,0.2]
[1759329141358,42.25827653,219.73,219.72,0.2]
[1759329141724,42.93827653,219.73,219.72,0.2]
[1759329141969,42.25827653,219.73,219.72,0.2]
[1759329142325,16.62291348,219.73,219.72,0.88]
[1759329142532,16.62291348,219.73,219.72,5.43124704]
[1759329142533,13.59559401,219.73,219.72,5.43124704]
[1759329142724,13.43507557,219.79,219.72,5.43124704]
[1759329142945,4.54938355,219.81,219.73,0.68]
[1759329143140,13.59559401,219.8,219.74,32.68]
[1759329143352,13.59559401,219.8,219.75,0.68]
[1759329143727,13.62023187,219.82,219.75,0.68]
[1759329144039,20.8,219.87,219.75,0.68]
[1759329144242,13.59559401,219.86,219.75,0.68]
[1759329144544,13.59559401,219.88,219.75,0.68]
[1759329144738,0.28432314,219.85,219.76,4.55041863]
[1759329144966,13.59559401,219.85,219.77,0.66]
[1759329145325,13.59559401,219.83,219.78,32.66]
[1759329145525,13.59559401,219.81,219.78,32.66]
[1759329145754,0.28432314,219.8,219.78,32.66]
[1759329146055,0.28432314,219.8,219.79,0.66]
[1759329146239,0.28432314,219.8,219.78,32.68]
[1759329146744,0.28432314,219.8,219.78,33.34]
[1759329147334,13.87991715,219.79,219.78,33.34]
[1759329147644,13.87991715,219.79,219.78,32.68]
[1759329147952,13.87991715,219.79,219.78,33.34]
[1759329148147,0.28432314,219.79,219.78,33.34]
[1759329148845,13.87991715,219.79,219.78,32.68]
[1759329149052,4.83412067,219.79,219.78,33.34]
[1759329149475,0.28432314,219.79,219.78,33.34]
[1759329150336,4.83412067,219.79,219.78,32.68]
[1759329150853,0.28432314,219.78,219.75,0.66]
[1759329151054,0.28432314,219.78,219.76,33.32]
[1759329151435,3.03165221,219.83,219.77,0.66]
[1759329151643,13.59559401,219.82,219.77,0.66]
[1759329151838,4.5477284,219.89,219.79,20.8]
[1759329152039,0.69,219.88,219.8,0.66]
[1759329152359,0.28432314,219.84,219.81,17.68]
[1759329152535,0.28432314,219.84,219.77,0.66]
[1759329152536,0.28432314,219.81,219.77,0.66]
[1759329152857,0.28432314,219.81,219.74,0.66]
[1759329153030,13.59559401,219.77,219.75,32.68]
[1759329153227,13.59559401,219.77,219.72,21.0]
[1759329153228,0.28432314,219.76,219.72,21.0]
[1759329153457,0.28432314,219.76,219.73,33.34]
[1759329153749,13.87991715,219.79,219.73,33.34]
[1759329153960,11.37281503,219.83,219.74,0.66]
[1759329153961,0.28432314,219.83,219.74,0.66]
[1759329155055,0.28432314,219.83,219.76,20.8]
[1759329155234,4.83329344,219.83,219.77,0.66]
[1759329155751,4.83329344,219.83,219.78,32.7]
[1759329156056,0.28432314,219.81,219.79,33.34]
[1759329156259,0.28432314,219.81,219.8,32.68]
[1759329156657,18.4293007,219.81,219.8,32.68]
[1759329157034,0.28432314,219.79,219.77,0.66]
[1759329157237,0.28432314,219.79,219.78,32.68]
[1759329158057,0.28432314,219.79,219.78,0.66]
[1759329158262,0.28432314,219.79,219.78,33.34]
[1759329158443,0.28432314,219.83,219.78,33.34]
[1759329158766,13.87991715,219.81,219.78,33.34]
[1759329158966,13.87991715,219.81,219.79,0.66]
[1759329159147,0.28432314,219.81,219.8,0.66]
[1759329159346,13.59559401,219.84,219.8,0.66]
[1759329159545,0.28432314,219.83,219.81,0.66]
[1759329159755,0.28432314,219.83,219.82,32.68]
[1759329160944,0.28432314,219.83,219.75,0.66]
[1759329160945,0.28432314,219.81,219.75,0.66]
[1759329161464,0.97432314,219.81,219.72,0.86]
[1759329161645,5.9981598,219.81,219.73,33.34]
[1759329161843,0.97432314,219.81,219.73,33.34]
[1759329162350,5.9981598,219.81,219.73,0.66]
[1759329162546,5.9981598,219.81,219.74,32.66]
[1759329163059,0.28432314,219.78,219.75,32.66]
[1759329163385,0.28432314,219.76,219.75,32.66]
[1759329164853,0.28432314,219.76,219.75,33.32]
[1759329165250,18.43033578,219.76,219.75,32.66]
[1759329166781,13.87991715,219.76,219.75,32.66]
[1759329167001,18.43033578,219.76,219.75,32.66]
[1759329167163,13.87991715,219.76,219.75,33.32]
[1759329167650,18.43033578,219.76,219.75,33.32]
[1759329167859,13.87991715,219.76,219.75,33.32]
[1759329168989,13.59559401,219.75,219.62,0.2]
[1759329169160,13.59559401,219.75,219.68,33.36]
[1759329169479,4.55041863,219.76,219.69,0.66]
[1759329169665,13.59559401,219.75,219.69,0.66]
[1759329170458,13.87991715,219.78,219.69,0.66]
[1759329171163,4.83435493,219.78,219.7,4.55166135]
[1759329171366,13.59559401,219.81,219.71,0.66]
[1759329171755,13.87991715,219.79,219.7,21.46]
[1759329172083,13.87991715,219.77,219.71,33.38]
[1759329172381,5.3081598,219.73,219.67,0.2]
[1759329172581,18.90375381,219.73,219.68,32.72]
[1759329172902,13.59559401,219.72,219.69,0.66]
[1759329173064,0.69,219.77,219.69,0.66]
[1759329173065,0.28432314,219.76,219.7,4.55166135]
[1759329173255,13.87991715,219.76,219.71,0.66]
[1759329173469,13.59559401,219.76,219.72,0.66]
[1759329173666,13.59559401,219.76,219.73,32.8]
[1759329174073,13.87991715,219.77,219.73,32.8]
[1759329174270,13.87991715,219.77,219.74,0.66]
[1759329174475,0.28432314,219.77,219.74,0.66]
[1759329174664,13.59559401,219.79,219.75,0.66]
[1759329174878,13.59559401,219.79,219.73,32.8]
[1759329174879,13.59559401,219.81,219.76,0.66]
[1759329175084,4.54959053,219.8,219.76,0.66]
[1759329175466,3.05630074,219.83,219.77,0.66]
[1759329175665,8.63082267,219.88,219.78,32.8]
[1759329175869,8.63082267,219.88,219.79,0.66]
[1759329175870,7.95082267,219.88,219.79,0.66]
[1759329176185,13.59559401,219.87,219.79,0.66]
[1759329176381,13.59559401,219.87,219.81,20.8]
[1759329176683,4.54752748,219.9,219.82,0.66]
[1759329176888,18.86032279,219.92,219.83,32.8]
[1759329177087,4.54669455,219.94,219.85,4.54855583]
[1759329177386,0.28432314,219.92,219.84,0.66]
[1759329177682,0.28432314,219.92,219.84,5.20864374]
[1759329177888,14.27559401,219.93,219.85,0.66]
[1759329178070,3.73630074,219.96,219.85,0.66]
[1759329178268,13.59559401,219.95,219.85,0.66]
[1759329178687,18.14210976,219.95,219.85,0.66]
[1759329178887,14.44791148,219.99,219.87,20.8]
[1759329179077,4.5458678,219.98,219.89,4.5477284]
[1759329179273,13.59559401,219.97,219.9,0.66]
[1759329179521,13.59559401,220.01,219.92,20.8]
[1759329179792,5.22518782,220.02,219.93,0.66]
[1759329179967,13.59559401,220.01,219.94,32.8]
[1759329180167,13.59559401,220.01,219.94,33.46]
[1759329180970,0.1,220.03,219.95,0.66]
[1759329181275,18.14068007,220.02,219.95,0.66]
[1759329181471,18.14068007,220.02,219.93,20.8]
[1759329181472,0.68,220.01,219.93,20.8]
[1759329181671,0.68,220.01,219.96,32.8]
[1759329182274,18.24047242,220.03,219.97,0.66]
[1759329183170,0.68,220.02,219.96,32.8]
[1759329183589,18.24047242,220.03,219.93,20.8]
[1759329183590,5.70383666,220.01,219.93,20.8]
[1759329183778,5.70383666,220.01,219.94,20.8]
[1759329184093,5.70383666,220.01,219.95,32.8]
[1759329184094,0.68,220.01,219.95,32.8]
[1759329185172,13.59559401,219.99,219.96,32.78]
[1759329185370,13.59559401,219.99,219.94,20.8]
[1759329185601,13.59559401,220.0,219.95,33.44]
[1759329185808,0.1,220.03,219.98,20.8]
[1759329186305,0.1,220.03,219.99,0.66]
[1759329186471,0.1,220.03,220.0,33.44]
[1759329186882,0.1,220.03,220.01,0.66]
[1759329187084,0.1,220.03,220.02,0.66]
[1759329187291,0.1,220.03,220.02,5.20504135]
[1759329187800,0.1,220.03,220.02,26.00504135]
[1759329188100,0.1,220.03,220.02,54.22]
[1759329188596,0.1,220.03,220.02,58.76504135]
[1759329189602,0.1,220.03,220.02,54.22]
[1759329190098,0.1,220.03,220.02,58.76504135]
[1759329191080,0.1,220.03,220.02,54.22]
[1759329191482,0.1,220.03,220.02,58.76504135]
[1759329192089,0.1,220.03,220.02,0.66]
[1759329192285,0.1,220.03,220.02,32.72]
[1759329192596,0.1,220.03,220.01,4.54513372]
[1759329192799,0.1,220.03,220.02,33.38]
[1759329193017,0.68,220.02,219.95,0.66]
[1759329193311,25.62498906,220.01,219.96,32.76]
[1759329193604,0.68,220.0,219.97,32.8]
[1759329193815,13.59559401,219.99,219.98,32.8]
[1759329194096,13.59559401,220.0,219.98,32.8]
[1759329194310,0.68,219.99,219.92,0.66]
[1759329194549,13.59559401,220.0,219.93,32.8]
[1759329195015,0.1,220.03,219.96,20.8]
[1759329195175,0.1,220.03,219.98,4.5458678]
[1759329195381,0.1,220.03,220.0,20.8]
[1759329195592,0.1,220.03,220.01,32.82]
[1759329197107,0.1,220.03,220.0,20.8]
[1759329197288,0.1,220.03,220.02,32.8]
[1759329197502,0.1,220.03,219.92,0.66]
[1759329197503,13.59559401,220.01,219.92,0.66]
[1759329197798,13.59559401,219.99,219.93,32.8]
[1759329198182,4.64485555,220.03,219.93,32.8]
[1759329198399,13.59559401,220.02,219.94,0.66]
[1759329198721,0.1,220.03,219.96,20.8]
[1759329198895,0.1,220.03,219.97,33.48]
[1759329199318,13.69559401,220.03,219.98,4.5458678]
[1759329199633,13.69559401,220.03,219.99,32.82]
[1759329199999,18.96049286,220.03,219.99,32.82]
[1759329200228,0.72,220.02,220.0,32.82]
[1759329200406,0.72,220.02,219.93,21.5]
[1759329200407,0.72,220.02,220.01,32.82]
[1759329200604,1.00432314,220.02,219.93,20.8]
[1759329200829,13.59559401,220.0,219.94,53.62]
[1759329201015,13.59559401,220.0,219.95,32.82]
[1759329201321,4.64489885,220.03,219.95,32.82]
[1759329201504,13.59559401,220.02,219.96,0.7]
[1759329201702,13.59559401,220.02,219.95,32.82]
[1759329201914,13.59559401,220.0,219.96,32.82]
[1759329202223,13.59559401,219.98,219.96,32.82]
[1759329202426,0.72,219.97,219.85,35.48]
[1759329202626,0.72,219.97,219.89,21.5]
[1759329202627,13.59559401,219.96,219.89,21.5]
[1759329202927,13.59559401,219.96,219.9,32.82]
[1759329203117,13.59559401,219.96,219.9,53.62]
[1759329203513,13.59559401,219.96,219.9,58.167315]
[1759329203826,13.59559401,219.94,219.85,36.14]
[1759329204024,13.59559401,219.94,219.86,32.82]
[1759329204025,13.59559401,219.92,219.86,32.82]
[1759329204629,13.59559401,219.92,219.87,32.82]
[1759329204818,0.68,219.91,219.85,35.48]
[1759329205140,0.28432314,219.94,219.85,35.48]
[1759329205141,0.28432314,219.94,219.88,32.82]
[1759329205630,4.54690128,219.93,219.88,32.82]
[1759329205810,0.28432314,219.94,219.88,32.82]
[1759329206009,14.55991715,219.98,219.89,0.66]
[1759329206211,13.59559401,219.96,219.89,0.66]
[1759329206418,13.59559401,219.99,219.91,20.8]
[1759329206616,13.59559401,219.99,219.92,33.5]
[1759329206927,13.59559401,220.0,219.92,33.5]
[1759329207228,13.59559401,220.02,219.93,0.66]
[1759329207933,18.14064201,220.02,219.94,4.54669455]
[1759329208228,0.68,220.01,219.93,0.66]
[1759329209102,0.28432314,219.99,219.94,32.82]
[1759329209303,0.68,219.98,219.95,32.82]
[1759329209560,0.28432314,219.99,219.95,32.82]
[1759329209826,0.68,219.98,219.95,32.82]
[1759329210142,5.22596567,219.98,219.91,5.20728243]
[1759329210319,5.22596567,219.98,219.92,32.8]
[1759329210718,18.14108949,220.0,219.92,32.8]
[1759329211035,7.76836036,219.98,219.92,32.8]
[1759329211208,0.28432314,219.96,219.92,32.8]
[1759329211403,13.59559401,220.04,219.92,33.46]
[1759329211606,13.59559401,219.99,219.92,32.8]
[1759329211934,13.59559401,219.97,219.92,32.8]
[1759329212105,14.27559401,219.97,219.92,32.8]
[1759329212308,14.27559401,219.96,219.92,32.8]
[1759329212511,14.27559401,219.96,219.92,20.8]
[1759329212822,13.59559401,219.94,219.93,32.82]
[1759329214534,18.82200778,219.96,219.9,0.66]
[1759329214735,0.68,219.96,219.9,5.20745726]
[1759329215032,13.59559401,219.95,219.9,5.20745726]
[1759329215225,13.59559401,219.95,219.91,0.66]
[1759329215527,13.59559401,219.95,219.9,5.20745726]
[1759329215906,13.59559401,219.97,219.91,0.66]
[1759329216436,13.59559401,219.97,219.91,5.20729491]
[1759329217513,13.59559401,220.0,219.92,21.46]
[1759329217711,13.59559401,220.0,219.93,33.44]
[1759329218131,13.59559401,219.98,219.93,32.78]
[1759329218334,13.59559401,219.98,219.93,37.98673981]
[1759329218931,13.59559401,220.01,219.94,0.66]
[1759329219121,13.59559401,220.02,219.96,20.8]
[1759329219317,13.59559401,220.02,219.97,32.78]
[1759329220122,0.68,220.01,219.97,32.78]
[1759329220438,13.59559401,220.02,219.97,32.78]
[1759329220932,14.27559401,220.02,219.97,32.78]
[1759329221135,0.68,220.01,219.98,32.76]
[1759329222133,0.68,220.01,219.99,32.76]
[1759329222313,0.68,220.01,220.0,32.74]
[1759329223030,5.22524794,220.01,220.0,32.74]
[1759329223237,12.02928516,220.01,219.94,4.5466086]
[1759329223437,12.02928516,220.01,219.95,32.74]
[1759329223438,12.9936083,220.01,219.95,32.74]
[1759329224015,5.50957108,220.01,219.95,32.74]
[1759329224234,5.50957108,220.01,219.95,37.28647301]
[1759329224422,5.50957108,220.01,219.96,32.72]
[1759329224933,13.59559401,219.99,219.93,0.66]
[1759329225134,13.59559401,219.97,219.94,32.72]
[1759329225322,14.27559401,219.97,219.94,32.72]
[1759329225522,22.04395437,220.0,219.94,33.38]
[1759329225717,22.04395437,220.0,219.94,32.72]
[1759329226133,12.02969838,219.99,219.94,32.72]
[1759329226447,21.07963123,219.97,219.92,20.8]
[1759329226653,21.07963123,219.95,219.88,0.66]
[1759329226817,21.07963123,219.95,219.89,32.72]
[1759329227424,21.75963123,219.95,219.89,32.72]
[1759329227621,14.27559401,219.95,219.89,32.72]
[1759329227938,13.59559401,219.93,219.86,25.34822845]
[1759329228120,13.59559401,219.91,219.85,40.0285289]
[1759329228447,21.07963123,219.91,219.87,32.7]
[1759329228834,0.68,219.9,219.87,32.7]
[1759329229157,15.9128627,219.95,219.85,35.48]
[1759329229158,21.75963123,219.89,219.85,35.48]
[1759329229454,21.75963123,219.89,219.88,32.7]
[1759329229455,13.59559401,219.89,219.88,32.7]
[1759329229826,14.27559401,219.89,219.88,32.7]
[1759329230337,18.82332241,219.89,219.88,32.7]
[1759329230546,18.82332241,219.89,219.88,32.72]
[1759329230956,26.30735963,219.89,219.88,32.72]
[1759329231335,18.82332241,219.89,219.88,32.7]
[1759329231534,7.48403722,219.91,219.88,32.7]
[1759329231742,0.96432314,219.9,219.88,32.7]
[1759329231935,0.28432314,219.9,219.88,32.7]
[1759329232242,19.107464,219.9,219.88,32.7]
[1759329232441,18.427464,219.9,219.88,32.7]
[1759329233131,13.59559401,219.88,219.85,35.48]
[1759329233443,4.83186999,219.9,219.86,32.68]
[1759329233647,5.53186999,219.9,219.86,32.68]
[1759329234029,21.77963123,219.89,219.86,32.68]
[1759329234223,13.59559401,219.87,219.86,32.68]
[1759329234835,21.77963123,219.89,219.85,35.48]
[1759329235041,14.29559401,219.89,219.86,32.68]
[1759329236152,13.59559401,219.89,219.86,32.68]
[1759329236333,13.59559401,219.89,219.87,32.64]
[1759329236652,13.59559401,219.89,219.85,40.71852821]
[1759329236842,0.14216157,219.91,219.86,33.33]
[1759329237053,13.59559401,219.92,219.86,33.33]
[1759329237247,4.54690749,219.93,219.87,0.69]
[1759329237248,13.59559401,219.93,219.87,0.69]
[1759329237551,21.07963123,219.93,219.87,0.69]
[1759329237735,7.76836036,219.92,219.85,36.17]
[1759329237933,7.76836036,219.92,219.88,32.64]
[1759329238134,13.59559401,219.9,219.88,32.64]
[1759329238651,13.59559401,219.9,219.89,32.64]
[1759329238952,14.29559401,219.9,219.89,32.64]
[1759329239135,13.59559401,219.9,219.89,32.64]
[1759329239652,13.59559401,219.93,219.85,40.02847914]
[1759329239865,13.59559401,219.93,219.89,0.69]
[1759329240027,13.59559401,219.93,219.9,32.62]
[1759329240229,14.29559401,219.93,219.91,32.62]
[1759329240428,13.59559401,219.93,219.92,32.62]
[1759329240847,13.59559401,219.95,219.92,32.62]
[1759329241054,13.73775558,219.97,219.93,0.69]
[1759329241247,13.73775558,219.97,219.92,32.62]
[1759329241560,13.59559401,219.97,219.93,0.69]
[1759329241738,13.59559401,219.97,219.92,32.62]
[1759329242072,13.59559401,219.97,219.92,33.31]
[1759329242073,14.29559401,219.97,219.92,33.31]
[1759329242356,13.59559401,219.98,219.93,0.69]
[1759329242552,13.59559401,219.98,219.92,37.16701141]
[1759329242745,14.29559401,219.98,219.92,37.16701141]
[1759329242951,13.59559401,219.98,219.92,37.16701141]
[1759329243148,13.73775558,219.99,219.93,0.69]
[1759329243347,13.59559401,219.99,219.93,0.69]
[1759329243547,13.69559401,220.03,219.93,0.69]
[1759329243948,13.59559401,219.97,219.9,20.8]
[1759329244254,23.16165782,219.93,219.91,32.62]
[1759329244457,18.42698979,219.93,219.92,32.62]
[1759329245048,19.12698979,219.93,219.92,32.62]
[1759329245257,0.28432314,219.94,219.92,32.62]
[1759329245455,0.7,219.93,219.85,0.69]
[1759329245647,13.59559401,219.91,219.86,32.64]
[1759329246058,13.59559401,219.89,219.86,32.64]
[1759329246249,13.59559401,219.89,219.87,0.69]
[1759329246556,13.59559401,219.89,219.86,32.64]
[1759329247361,13.59559401,219.89,219.87,32.66]
[1759329247660,0.28432314,219.94,219.87,32.66]
[1759329247661,13.87991715,219.94,219.88,0.69]
[1759329247965,13.73775558,219.94,219.88,0.69]
[1759329248164,13.59559401,219.95,219.89,4.5477284]
[1759329248358,13.59559401,219.95,219.89,5.2377284]
[1759329248560,5.01899117,219.93,219.86,0.69]
[1759329248874,6.00331431,219.92,219.87,32.64]
[1759329249459,4.54651687,219.95,219.88,0.69]
[1759329249664,18.14187565,219.96,219.88,0.69]
[1759329250173,4.54669455,219.94,219.88,5.23793003]
[1759329250463,0.28432314,219.92,219.89,32.66]
[1759329250636,0.28432314,219.92,219.9,32.66]
[1759329250637,0.7,219.91,219.9,32.66]
[1759329250837,13.59559401,219.94,219.9,33.35]
[1759329251252,13.59559401,219.97,219.91,0.69]
[1759329251459,18.14173762,219.97,219.9,32.66]
[1759329251665,0.98432314,219.96,219.9,32.66]
[1759329252161,5.01899117,219.98,219.9,32.66]
[1759329252360,13.59559401,219.97,219.91,5.23731481]
[1759329253160,13.59559401,219.97,219.91,0.69]
[1759329253669,20.8,220.01,219.91,0.69]
[1759329253670,5.24458101,220.05,219.93,20.8]
[1759329253957,0.1,220.03,219.94,33.35]
[1759329254163,0.1,220.03,219.95,0.69]
[1759329254363,13.59559401,220.02,219.96,4.54628114]
[1759329254668,13.59559401,220.02,219.97,32.66]
[1759329255171,13.59559401,220.0,219.98,32.66]
[1759329255469,13.87991715,220.02,219.98,33.35]
[1759329255659,14.57991715,220.02,219.98,32.66]
[1759329255841,13.87991715,220.02,219.98,32.66]
[1759329256158,0.1,220.03,219.99,0.69]
[1759329256466,0.1,220.03,220.0,0.69]
[1759329256845,0.1,220.03,220.01,0.69]
[1759329257162,0.1,220.03,220.02,32.66]
[1759329257371,14.39559401,220.03,220.02,32.66]
[1759329257543,13.59559401,220.02,219.97,5.23604625]
[1759329257747,13.59559401,220.02,219.98,32.68]
[1759329257963,14.29559401,220.02,219.98,32.68]
[1759329258769,14.29559401,220.02,219.97,4.54606827]
[1759329258944,14.29559401,220.02,219.99,32.66]
[1759329260272,4.64484806,220.03,219.99,32.66]
[1759329260467,0.38432314,220.03,219.99,32.66]
[1759329260775,0.67,220.02,219.99,32.66]
[1759329261068,4.92926498,220.03,219.99,32.66]
[1759329261275,5.59926498,220.03,219.99,32.66]
[1759329261452,13.59559401,220.02,219.99,32.66]
[1759329262568,13.59559401,220.02,219.99,37.20559637]
[1759329262747,13.59559401,220.02,219.99,37.88559637]
[1759329263453,13.59559401,220.02,220.0,0.66]
[1759329264065,13.59559401,220.02,219.99,32.66]
[1759329264251,13.59559401,220.02,219.99,33.32]
[1759329264768,13.59559401,220.02,219.99,37.86566084]
[1759329265271,13.59559401,220.02,220.0,0.66]
[1759329265454,13.59559401,220.02,220.01,0.66]
[1759329265780,0.1,220.03,220.01,0.66]
[1759329266090,0.1,220.03,220.02,0.66]
[1759329267166,0.1,220.03,220.02,5.20504135]
[1759329267355,0.1,220.03,219.95,32.16592563]
[1759329267548,0.1,220.03,220.0,0.66]
[1759329267751,0.1,220.03,220.01,32.6]
[1759329268458,4.64486804,220.03,220.01,32.6]
[1759329268663,5.33486804,220.03,220.01,32.6]
[1759329268858,0.1,220.03,220.01,32.6]
[1759329269063,0.1,220.03,219.98,0.66]
[1759329269274,4.64484112,220.03,219.99,32.6]
[1759329269849,0.1,220.03,219.99,37.80565832]
[1759329270068,0.1,220.03,219.99,37.14565832]
[1759329270276,0.1,220.03,220.0,0.66]
[1759329270573,0.1,220.03,220.01,0.66]
[1759329271063,0.1,220.03,219.99,37.14565832]
[1759329271261,0.1,220.03,220.0,5.20535934]
[1759329271452,0.1,220.03,220.0,16.5689957]
[1759329271652,0.1,220.03,220.01,0.66]
[1759329271981,0.1,220.03,220.02,0.66]
[1759329272574,0.1,220.03,220.0,15.9089957]
[1759329272774,0.1,220.03,220.02,0.66]
[1759329273186,0.1,220.03,220.02,21.46]
[1759329273418,0.1,220.12,220.02,37.36764474]
[1759329273574,0.1,220.12,220.06,20.8]
[1759329273770,0.1,220.12,220.07,32.88]
[1759329273969,0.1,220.12,220.07,33.54]
[1759329274169,0.69,220.11,220.05,0.66]
[1759329274397,0.1,220.12,220.06,32.88]
[1759329274693,0.1,220.12,220.07,0.66]
[1759329275194,14.28559401,220.11,220.05,20.8]
[1759329275378,14.28559401,220.11,220.08,33.0]
[1759329275379,18.13878225,220.11,220.08,33.0]
[1759329275884,13.59559401,220.09,220.08,33.0]
[1759329276398,13.59559401,220.09,220.03,0.66]
[1759329276399,0.69,220.09,220.03,0.66]
[1759329276592,0.69,220.09,220.04,33.1]
[1759329276891,4.54318824,220.11,220.04,8.76]
[1759329277390,14.38559401,220.12,220.04,13.30462806]
[1759329278783,14.38559401,220.12,220.04,24.66619868]
[1759329278784,0.1,220.12,220.04,24.66619868]
[1759329279094,0.1,220.12,220.07,20.8]
[1759329279470,0.1,220.12,220.08,4.54380225]
[1759329279672,0.1,220.12,220.09,33.1]
[1759329279875,0.1,220.12,220.09,33.73]
[1759329280278,0.1,220.12,220.09,33.1]
[1759329281479,0.1,220.12,220.1,5.17338936]
[1759329281683,3.91001621,220.32,220.13,20.8]
[1759329281684,13.59559401,220.3,220.13,20.8]
[1759329281901,0.79,220.26,220.14,33.26]
[1759329282105,13.59559401,220.24,220.14,33.79]
[1759329282286,13.59559401,220.24,220.17,20.8]
[1759329282480,0.1,220.25,220.18,33.72]
[1759329282781,0.69,220.23,220.14,0.53]
[1759329282978,13.59559401,220.22,220.14,0.53]
[1759329283192,0.1,220.25,220.18,20.8]
[1759329283394,13.59559401,220.22,220.18,20.8]
[1759329283581,0.79,220.21,220.15,33.84]
[1759329283770,13.59559401,220.2,220.15,33.84]
[1759329283975,13.59559401,220.18,220.15,33.84]
[1759329284186,13.87991715,220.16,220.15,33.84]
[1759329284384,0.69,220.16,220.14,34.24]
[1759329284673,0.69,220.16,220.08,20.8]
[1759329284674,13.59559401,220.14,220.05,0.53]
[1759329284870,0.69,220.14,220.06,34.24]
[1759329285093,0.97432314,220.13,220.06,34.24]
[1759329285274,0.69,220.13,220.06,34.77]
[1759329285483,0.28432314,220.17,220.09,20.8]
[1759329285683,0.28432314,220.14,220.04,0.53]
[1759329285881,13.59559401,220.12,220.05,34.26]
[1759329286083,14.28559401,220.12,220.05,34.26]
[1759329286604,14.28559401,220.12,219.89,20.0]
[1759329286605,0.28432314,220.09,220.06,34.3]
[1759329286898,0.69,220.08,220.07,34.3]
[1759329287474,5.23380225,220.08,220.07,34.3]
[1759329288205,0.69,220.08,220.07,34.3]
[1759329288378,13.59559401,220.09,220.07,34.3]
[1759329288577,13.59559401,220.13,220.07,34.3]
[1759329288806,13.59559401,220.11,220.07,34.3]
[1759329288985,13.59559401,220.09,220.07,34.3]
[1759329289192,14.28559401,220.09,220.07,34.3]
[1759329289395,5.23337906,220.11,220.07,34.3]
[1759329289721,13.59559401,220.09,220.07,34.3]
[1759329290084,13.59559401,220.1,220.07,34.3]
[1759329290382,14.28559401,220.08,220.07,34.3]
[1759329290713,14.56991715,220.08,220.07,34.3]